[Event "*** Titled Tuesday Blitz"]
[Site "Chess.com"]
[Date "2020.10.20"]
[Round "5"]
[White "arminmusovic"]
[Black "TrimitziosP7"]
[Result "1/2-1/2"]
[WhiteElo "2571"]
[BlackElo "2762"]
[TimeControl "180+1"]
[EndTime "11:00:24 PDT"]
[Termination "Game drawn - insufficient material"]

1. a3 {[%clk 0:03:00.9]} 1... d5 {[%clk 0:02:58.6]} 2. Nc3 {[%clk 0:03:00.2]}
2... Bf5 {[%clk 0:02:53.7]} 3. d4 {[%clk 0:02:58]} 3... Nf6 {[%clk 0:02:51.8]}
4. Bf4 {[%clk 0:02:56.9]} 4... e6 {[%clk 0:02:49.3]} 5. e3 {[%clk 0:02:57.3]}
5... a6 {[%clk 0:02:46.1]} 6. Nf3 {[%clk 0:02:56.6]} 6... Bd6 {[%clk 0:02:43.3]}
7. Bg3 {[%clk 0:02:54.1]} 7... O-O {[%clk 0:02:41.9]} 8. Bd3 {[%clk 0:02:53.7]}
8... Bg6 {[%clk 0:02:39.6]} 9. O-O {[%clk 0:02:52.4]} 9... Qe7 {[%clk 0:02:37]}
10. Re1 {[%clk 0:02:38.3]} 10... Nbd7 {[%clk 0:02:31.7]} 11. Bh4 {[%clk
0:02:28.8]} 11... c6 {[%clk 0:02:21.6]} 12. e4 {[%clk 0:02:24]} 12... dxe4
{[%clk 0:02:14.8]} 13. Nxe4 {[%clk 0:02:22.1]} 13... Bxe4 {[%clk 0:02:12.1]} 14.
Bxe4 {[%clk 0:02:17.9]} 14... Qd8 {[%clk 0:02:11.2]} 15. c3 {[%clk 0:02:11.6]}
15... Qc7 {[%clk 0:02:10.5]} 16. Bc2 {[%clk 0:02:10.6]} 16... c5 {[%clk
0:02:07.3]} 17. Rc1 {[%clk 0:02:05.7]} 17... Rad8 {[%clk 0:01:59.7]} 18. Bb1
{[%clk 0:02:02.7]} 18... Rfe8 {[%clk 0:01:56.8]} 19. b4 {[%clk 0:01:52.3]} 19...
c4 {[%clk 0:01:53.6]} 20. Qc2 {[%clk 0:01:45.2]} 20... g6 {[%clk 0:01:49.2]} 21.
Qd2 {[%clk 0:01:39.1]} 21... Bf4 {[%clk 0:01:45.3]} 22. Bg3 {[%clk 0:01:35.5]}
22... Bxd2 {[%clk 0:01:42.6]} 23. Bxc7 {[%clk 0:01:35.6]} 23... Bxe1 {[%clk
0:01:37.3]} 24. Bxd8 {[%clk 0:01:33.7]} 24... Bxf2+ {[%clk 0:01:37.4]} 25. Kxf2
{[%clk 0:01:34.6]} 25... Rxd8 {[%clk 0:01:38]} 26. h3 {[%clk 0:01:21.1]} 26...
b5 {[%clk 0:01:28.4]} 27. Ng5 {[%clk 0:01:02.8]} 27... Nb6 {[%clk 0:01:25.3]}
28. Ne4 {[%clk 0:01:00.6]} 28... Nxe4+ {[%clk 0:01:24.8]} 29. Bxe4 {[%clk
0:01:00.7]} 29... Na4 {[%clk 0:01:24.7]} 30. Ke3 {[%clk 0:00:57.1]} 30... Rd6
{[%clk 0:01:24.9]} 31. g4 {[%clk 0:00:54.7]} 31... f5 {[%clk 0:01:25]} 32. Bf3
{[%clk 0:00:52.9]} 32... Kf7 {[%clk 0:01:25]} 33. Bd1 {[%clk 0:00:53]} 33... Nb6
{[%clk 0:01:24.8]} 34. Bf3 {[%clk 0:00:53.4]} 34... Kf6 {[%clk 0:01:24.7]} 35.
Rg1 {[%clk 0:00:49.2]} 35... Nd5+ {[%clk 0:01:22.7]} 36. Bxd5 {[%clk 0:00:48.9]}
36... exd5 {[%clk 0:01:23.6]} 37. gxf5 {[%clk 0:00:44.2]} 37... Kxf5 {[%clk
0:01:24.5]} 38. h4 {[%clk 0:00:43.2]} 38... Re6+ {[%clk 0:01:22.7]} 39. Kf3
{[%clk 0:00:40]} 39... h6 {[%clk 0:01:22.8]} 40. a4 {[%clk 0:00:38.6]} 40... Re4
{[%clk 0:01:17]} 41. axb5 {[%clk 0:00:28.5]} 41... axb5 {[%clk 0:01:17.9]} 42.
Rh1 {[%clk 0:00:27.2]} 42... Rf4+ {[%clk 0:01:14.1]} 43. Ke3 {[%clk 0:00:25.9]}
43... h5 {[%clk 0:01:12.7]} 44. Rh2 {[%clk 0:00:24.8]} 44... Rf1 {[%clk
0:01:11.4]} 45. Rg2 {[%clk 0:00:21.9]} 45... Re1+ {[%clk 0:01:09]} 46. Kf3
{[%clk 0:00:18.9]} 46... Rc1 {[%clk 0:01:05.7]} 47. Rg5+ {[%clk 0:00:19.1]}
47... Ke6 {[%clk 0:01:06]} 48. Rxg6+ {[%clk 0:00:19.4]} 48... Kd7 {[%clk
0:01:05.1]} 49. Rg7+ {[%clk 0:00:19.1]} 49... Ke6 {[%clk 0:01:02.9]} 50. Kf4
{[%clk 0:00:14.3]} 50... Rf1+ {[%clk 0:00:47.5]} 51. Ke3 {[%clk 0:00:14.7]}
51... Re1+ {[%clk 0:00:46.3]} 52. Kf4 {[%clk 0:00:13.6]} 52... Re4+ {[%clk
0:00:45.3]} 53. Kf3 {[%clk 0:00:14.1]} 53... Rxh4 {[%clk 0:00:44.8]} 54. Rb7
{[%clk 0:00:14]} 54... Rh3+ {[%clk 0:00:44.7]} 55. Kf4 {[%clk 0:00:14.6]} 55...
Rxc3 {[%clk 0:00:44.8]} 56. Rb6+ {[%clk 0:00:15.1]} 56... Kd7 {[%clk 0:00:44.9]}
57. Ke5 {[%clk 0:00:15.3]} 57... Rg3 {[%clk 0:00:43]} 58. Kxd5 {[%clk
0:00:13.4]} 58... Rg5+ {[%clk 0:00:43.5]} 59. Ke4 {[%clk 0:00:14]} 59... Kc7
{[%clk 0:00:38.9]} 60. Rh6 {[%clk 0:00:13.3]} 60... c3 {[%clk 0:00:36.1]} 61. d5
{[%clk 0:00:12.8]} 61... Rg4+ {[%clk 0:00:32.7]} 62. Kd3 {[%clk 0:00:11.8]}
62... Rc4 {[%clk 0:00:29.8]} 63. Kc2 {[%clk 0:00:11.1]} 63... h4 {[%clk
0:00:30]} 64. Rh7+ {[%clk 0:00:06.4]} 64... Kd6 {[%clk 0:00:30.2]} 65. Rh5
{[%clk 0:00:07.3]} 65... Rxb4 {[%clk 0:00:25]} 66. Kxc3 {[%clk 0:00:07.2]} 66...
Rc4+ {[%clk 0:00:25]} 67. Kb3 {[%clk 0:00:07.7]} 67... Rg4 {[%clk 0:00:24.3]}
68. Kc3 {[%clk 0:00:06.8]} 68... Rg3+ {[%clk 0:00:23.6]} 69. Kb4 {[%clk
0:00:06.9]} 69... h3 {[%clk 0:00:19.6]} 70. Kxb5 {[%clk 0:00:06.7]} 70... Rc3
{[%clk 0:00:18]} 71. Kb4 {[%clk 0:00:06.7]} 71... Rg3 {[%clk 0:00:17]} 72. Kc4
{[%clk 0:00:07]} 72... Rg4+ {[%clk 0:00:16]} 73. Kd3 {[%clk 0:00:07.4]} 73...
Rg3+ {[%clk 0:00:16.3]} 74. Kd4 {[%clk 0:00:07.4]} 74... Rg4+ {[%clk 0:00:16.2]}
75. Ke3 {[%clk 0:00:07.9]} 75... Ra4 {[%clk 0:00:16]} 76. Kf3 {[%clk 0:00:07.3]}
76... Ra3+ {[%clk 0:00:15.3]} 77. Kf2 {[%clk 0:00:06.8]} 77... Kc5 {[%clk
0:00:12.4]} 78. Kg1 {[%clk 0:00:06.7]} 78... Rd3 {[%clk 0:00:05.1]} 79. Kh2
{[%clk 0:00:06.8]} 79... Kd6 {[%clk 0:00:05.3]} 80. Rxh3 {[%clk 0:00:05.7]}
80... Rxd5 {[%clk 0:00:05.8]} 81. Re3 {[%clk 0:00:05.4]} 81... Rg5 {[%clk
0:00:05]} 82. Kh3 {[%clk 0:00:05.5]} 82... Kd5 {[%clk 0:00:04.9]} 83. Re1 {[%clk
0:00:05.8]} 83... Kd4 {[%clk 0:00:05.2]} 84. Kh4 {[%clk 0:00:06.2]} 84... Rg8
{[%clk 0:00:05.4]} 85. Kh5 {[%clk 0:00:06.4]} 85... Kd3 {[%clk 0:00:05.8]} 86.
Kh6 {[%clk 0:00:06.5]} 86... Kd2 {[%clk 0:00:06.3]} 87. Re7 {[%clk 0:00:06.6]}
87... Rh8+ {[%clk 0:00:06.2]} 88. Kg7 {[%clk 0:00:06.9]} 88... Rh2 {[%clk
0:00:05.9]} 89. Kf7 {[%clk 0:00:07.8]} 89... Kd3 {[%clk 0:00:06]} 90. Kf6 {[%clk
0:00:07.4]} 90... Kd4 {[%clk 0:00:06.1]} 91. Re1 {[%clk 0:00:07.1]} 91... Rh6+
{[%clk 0:00:05.4]} 92. Kg5 {[%clk 0:00:07.1]} 92... Rh8 {[%clk 0:00:05.7]} 93.
Kg6 {[%clk 0:00:07.3]} 93... Rg8+ {[%clk 0:00:05.8]} 94. Kf7 {[%clk 0:00:07.6]}
94... Rg2 {[%clk 0:00:06.7]} 95. Kf6 {[%clk 0:00:07.7]} 95... Kd3 {[%clk
0:00:06.4]} 96. Kf5 {[%clk 0:00:07.8]} 96... Rf2+ {[%clk 0:00:06.4]} 97. Kg4
{[%clk 0:00:08]} 97... Rf8 {[%clk 0:00:07.2]} 98. Re7 {[%clk 0:00:07.8]} 98...
Kc4 {[%clk 0:00:06.9]} 99. Kg5 {[%clk 0:00:08]} 99... Kd5 {[%clk 0:00:07.3]}
100. Re1 {[%clk 0:00:07.5]} 100... Rg8+ {[%clk 0:00:06.5]} 101. Kf6 {[%clk
0:00:07.6]} 101... Rg2 {[%clk 0:00:06.4]} 102. Kf5 {[%clk 0:00:07]} 102... Rf2+
{[%clk 0:00:06.2]} 103. Kg4 {[%clk 0:00:07.4]} 103... Rd2 {[%clk 0:00:05.3]}
104. Kf3 {[%clk 0:00:07]} 104... Rd3+ {[%clk 0:00:05.3]} 105. Kf4 {[%clk
0:00:07.3]} 105... Rd4+ {[%clk 0:00:05.4]} 106. Kf5 {[%clk 0:00:07.4]} 106...
Kc4 {[%clk 0:00:05]} 107. Re8 {[%clk 0:00:07.1]} 107... Rd5+ {[%clk 0:00:04.7]}
108. Kf6 {[%clk 0:00:07.2]} 108... Rd2 {[%clk 0:00:03.9]} 109. Kf5 {[%clk
0:00:07.3]} 109... Kd3 {[%clk 0:00:04.2]} 110. Rd8+ {[%clk 0:00:07.1]} 110...
Kc2 {[%clk 0:00:04.7]} 111. Rxd2+ {[%clk 0:00:08]} 111... Kxd2 {[%clk
0:00:05.3]} 1/2-1/2

[Event "*** Titled Tuesday Blitz"]
[Site "Chess.com"]
[Date "2020.10.20"]
[Round "5"]
[White "KaterinaMiroshnik"]
[Black "German_Bazeev"]
[Result "0-1"]
[WhiteElo "2470"]
[BlackElo "2716"]
[TimeControl "180+1"]
[EndTime "11:00:35 PDT"]
[Termination "German_Bazeev won by resignation"]

1. d4 {[%clk 0:02:54.1]} 1... Nf6 {[%clk 0:02:59.5]} 2. Nf3 {[%clk 0:02:55]}
2... e6 {[%clk 0:02:59.7]} 3. g3 {[%clk 0:02:55]} 3... b5 {[%clk 0:02:59.3]} 4.
Bg2 {[%clk 0:02:55.3]} 4... Bb7 {[%clk 0:02:58.9]} 5. c3 {[%clk 0:02:55.7]} 5...
c5 {[%clk 0:02:59.1]} 6. O-O {[%clk 0:02:55.4]} 6... d5 {[%clk 0:02:53.9]} 7.
Bg5 {[%clk 0:02:49.3]} 7... Nbd7 {[%clk 0:02:52.9]} 8. Nbd2 {[%clk 0:02:43.3]}
8... h6 {[%clk 0:02:51.9]} 9. Bf4 {[%clk 0:02:40.6]} 9... Be7 {[%clk 0:02:43.2]}
10. a4 {[%clk 0:02:32.2]} 10... b4 {[%clk 0:02:37.3]} 11. Ne5 {[%clk 0:02:20]}
11... bxc3 {[%clk 0:02:29]} 12. bxc3 {[%clk 0:02:19.2]} 12... O-O {[%clk
0:02:29]} 13. Rb1 {[%clk 0:02:15.2]} 13... Qc8 {[%clk 0:02:28.4]} 14. Nxd7
{[%clk 0:02:07.1]} 14... Nxd7 {[%clk 0:02:26.7]} 15. c4 {[%clk 0:01:28.1]} 15...
Nf6 {[%clk 0:01:25.3]} 16. cxd5 {[%clk 0:01:18.3]} 16... Nxd5 {[%clk 0:01:20.8]}
17. Qb3 {[%clk 0:00:49.7]} 17... Ba6 {[%clk 0:01:15.6]} 18. Rfe1 {[%clk
0:00:39.9]} 18... Nxf4 {[%clk 0:01:12.7]} 19. gxf4 {[%clk 0:00:39.2]} 19... Rb8
{[%clk 0:01:10.8]} 20. Qxb8 {[%clk 0:00:38.8]} 20... Qxb8 {[%clk 0:01:11.7]} 21.
Rxb8 {[%clk 0:00:38.9]} 21... Rxb8 {[%clk 0:01:12.6]} 22. dxc5 {[%clk
0:00:39.6]} 22... Bxc5 {[%clk 0:01:13.3]} 23. Ne4 {[%clk 0:00:39.5]} 23... Bb4
{[%clk 0:01:09.1]} 24. Rb1 {[%clk 0:00:38.3]} 24... Bxe2 {[%clk 0:01:08.5]} 25.
Nc3 {[%clk 0:00:34]} 25... Bg4 {[%clk 0:01:01.8]} 26. Nb5 {[%clk 0:00:29.5]}
26... Bc5 {[%clk 0:00:59]} 27. Rc1 {[%clk 0:00:27.6]} 27... Bb6 {[%clk
0:00:59.2]} 28. Nd6 {[%clk 0:00:24.6]} 28... Rd8 {[%clk 0:00:54.2]} 29. Nc4
{[%clk 0:00:24.9]} 29... Rc8 {[%clk 0:00:51.1]} 30. Bf1 {[%clk 0:00:25.2]} 30...
Bf3 {[%clk 0:00:39.7]} 31. Rb1 {[%clk 0:00:23.1]} 31... Bd5 {[%clk 0:00:29.4]}
32. Nxb6 {[%clk 0:00:20.6]} 32... axb6 {[%clk 0:00:30.3]} 33. Be2 {[%clk
0:00:18.6]} 33... Rc6 {[%clk 0:00:29.7]} 34. Kf1 {[%clk 0:00:18.7]} 34... g6
{[%clk 0:00:29.1]} 35. f3 {[%clk 0:00:19]} 35... Bc4 {[%clk 0:00:26.4]} 36. Rb2
{[%clk 0:00:19.1]} 36... Bxe2+ {[%clk 0:00:25.7]} 37. Kxe2 {[%clk 0:00:20]}
37... Rd6 {[%clk 0:00:22.1]} 38. Ke3 {[%clk 0:00:19.5]} 38... Kg7 {[%clk
0:00:22.7]} 39. Kf2 {[%clk 0:00:19.5]} 39... Kf6 {[%clk 0:00:22.9]} 40. Ke3
{[%clk 0:00:17.7]} 40... Ke7 {[%clk 0:00:23]} 41. Rb4 {[%clk 0:00:17.3]} 41...
Kd7 {[%clk 0:00:23.2]} 42. h4 {[%clk 0:00:17.4]} 42... h5 {[%clk 0:00:23]} 43.
Rb5 {[%clk 0:00:17.1]} 43... Kc6 {[%clk 0:00:22.2]} 44. Re5 {[%clk 0:00:15.8]}
44... Rd5 {[%clk 0:00:22.3]} 45. Re4 {[%clk 0:00:15.1]} 45... Rd1 {[%clk
0:00:20.2]} 46. Rc4+ {[%clk 0:00:14.1]} 46... Kb7 {[%clk 0:00:20.2]} 47. Rb4
{[%clk 0:00:13.7]} 47... Rd5 {[%clk 0:00:19.9]} 48. Ke4 {[%clk 0:00:12.8]} 48...
Ka6 {[%clk 0:00:20.2]} 49. Ke3 {[%clk 0:00:12.7]} 49... Ka5 {[%clk 0:00:20.4]}
50. Rc4 {[%clk 0:00:12.4]} 50... Rc5 {[%clk 0:00:20.3]} 51. Rd4 {[%clk
0:00:12.1]} 51... Rd5 {[%clk 0:00:19.9]} 52. Rc4 {[%clk 0:00:11.8]} 52... Rf5
{[%clk 0:00:15.4]} 53. Ke4 {[%clk 0:00:11.2]} 53... Ka6 {[%clk 0:00:15.5]} 54.
Rb4 {[%clk 0:00:11.1]} 54... Rd5 {[%clk 0:00:14.1]} 55. Rc4 {[%clk 0:00:11.3]}
55... Kb7 {[%clk 0:00:08.5]} 56. Rb4 {[%clk 0:00:11.1]} 56... Rc5 {[%clk
0:00:08]} 57. Rd4 {[%clk 0:00:10.7]} 57... Kc6 {[%clk 0:00:08.5]} 58. Ke3 {[%clk
0:00:10.2]} 58... e5 {[%clk 0:00:08.3]} 59. fxe5 {[%clk 0:00:09.6]} 59... Rxe5+
{[%clk 0:00:09.2]} 60. Kf4 {[%clk 0:00:09.9]} 60... Rf5+ {[%clk 0:00:09.5]} 61.
Kg3 {[%clk 0:00:09.9]} 61... Rd5 {[%clk 0:00:08.4]} 62. Re4 {[%clk 0:00:10.1]}
62... Rd7 {[%clk 0:00:07.6]} 63. Rf4 {[%clk 0:00:10.5]} 63... Kc5 {[%clk
0:00:06.9]} 64. Re4 {[%clk 0:00:10.4]} 64... Kc6 {[%clk 0:00:07.1]} 65. Kf4
{[%clk 0:00:10.4]} 65... Rd5 {[%clk 0:00:06.5]} 66. Re7 {[%clk 0:00:09.7]} 66...
Rf5+ {[%clk 0:00:06.4]} 67. Ke4 {[%clk 0:00:09.6]} 67... Rf6 {[%clk 0:00:06.7]}
68. Re8 {[%clk 0:00:08.9]} 68... Kc5 {[%clk 0:00:06.8]} 69. Re5+ {[%clk
0:00:08.1]} 69... Kc6 {[%clk 0:00:06.3]} 70. a5 {[%clk 0:00:07.7]} 70... bxa5
{[%clk 0:00:04.4]} 71. Rxa5 {[%clk 0:00:08.6]} 71... Kd7 {[%clk 0:00:04.6]} 72.
Ra7+ {[%clk 0:00:08.6]} 72... Ke8 {[%clk 0:00:04.9]} 73. Ke3 {[%clk 0:00:09.1]}
73... Kf8 {[%clk 0:00:05.3]} 74. Kf2 {[%clk 0:00:08.7]} 74... Kg7 {[%clk
0:00:05.9]} 75. Kg3 {[%clk 0:00:09.1]} 75... Re6 {[%clk 0:00:06.4]} 76. Ra3
{[%clk 0:00:09.4]} 76... Kf6 {[%clk 0:00:06.9]} 77. Rd3 {[%clk 0:00:09.6]} 77...
Re7 {[%clk 0:00:07.8]} 78. Rd6+ {[%clk 0:00:09.4]} 78... Re6 {[%clk 0:00:08.7]}
79. Rd3 {[%clk 0:00:09.9]} 79... Kf5 {[%clk 0:00:08.5]} 80. Rd7 {[%clk
0:00:10.1]} 80... f6 {[%clk 0:00:08.2]} 81. Rd5+ {[%clk 0:00:10.3]} 81... Re5
{[%clk 0:00:08.6]} 82. Rd4 {[%clk 0:00:10.6]} 82... Ke6 {[%clk 0:00:09]} 83. Rf4
{[%clk 0:00:10.7]} 83... Re1 {[%clk 0:00:08.5]} 84. Ra4 {[%clk 0:00:10.7]} 84...
Rg1+ {[%clk 0:00:08.5]} 85. Kh2 {[%clk 0:00:10.9]} 85... Rf1 {[%clk 0:00:08.9]}
86. Kg2 {[%clk 0:00:10.9]} 86... Rd1 {[%clk 0:00:09.8]} 87. Ra6+ {[%clk
0:00:10.6]} 87... Rd6 {[%clk 0:00:10.7]} 88. Ra5 {[%clk 0:00:10.1]} 88... Kf7
{[%clk 0:00:10.7]} 89. Kg3 {[%clk 0:00:10.1]} 89... Kg7 {[%clk 0:00:10.1]} 90.
Ra7+ {[%clk 0:00:09.7]} 90... Kh6 {[%clk 0:00:10.3]} 91. Ra5 {[%clk 0:00:09.2]}
91... g5 {[%clk 0:00:10.5]} 92. Rf5 {[%clk 0:00:07.4]} 92... Kg6 {[%clk
0:00:10.7]} 93. Ra5 {[%clk 0:00:06.7]} 93... Re6 {[%clk 0:00:11.2]} 94. Rb5
{[%clk 0:00:05.4]} 94... Re5 {[%clk 0:00:11.4]} 95. Rb6 {[%clk 0:00:05]} 95...
Kf5 {[%clk 0:00:10.4]} 96. hxg5 {[%clk 0:00:04.9]} 96... fxg5 {[%clk 0:00:11.3]}
97. Rb8 {[%clk 0:00:05.3]} 97... h4+ {[%clk 0:00:11.3]} 98. Kh3 {[%clk
0:00:05.6]} 98... Kf4 {[%clk 0:00:11.6]} 99. Rf8+ {[%clk 0:00:05.9]} 99... Ke3
{[%clk 0:00:12.1]} 100. Kg4 {[%clk 0:00:06.1]} 100... Kf2 {[%clk 0:00:12.2]}
101. f4 {[%clk 0:00:04.4]} 101... Re4 {[%clk 0:00:11.8]} 102. Kh3 {[%clk
0:00:03.6]} 102... Rxf4 {[%clk 0:00:10.9]} 103. Ra8 {[%clk 0:00:03.8]} 103...
Rf3+ {[%clk 0:00:11.1]} 104. Kh2 {[%clk 0:00:03.8]} 104... Ke3 {[%clk
0:00:11.2]} 105. Ra3+ {[%clk 0:00:03.6]} 105... Kf4 {[%clk 0:00:11.4]} 106. Ra4+
{[%clk 0:00:04.5]} 106... Kf5 {[%clk 0:00:11.7]} 107. Ra2 {[%clk 0:00:04.7]}
107... Kg4 {[%clk 0:00:11.8]} 108. Ra4+ {[%clk 0:00:04.6]} 108... Rf4 {[%clk
0:00:12]} 109. Ra3 {[%clk 0:00:05.5]} 109... Rc4 {[%clk 0:00:12.2]} 110. Rb3
{[%clk 0:00:04.5]} 110... Rc2+ {[%clk 0:00:11.7]} 111. Kg1 {[%clk 0:00:04.7]}
111... h3 {[%clk 0:00:12]} 112. Rb4+ {[%clk 0:00:04.8]} 112... Kg3 {[%clk
0:00:11.7]} 113. Rb3+ {[%clk 0:00:05.7]} 113... Kh4 {[%clk 0:00:12]} 114. Kh1
{[%clk 0:00:05.7]} 114... g4 {[%clk 0:00:12.2]} 115. Rb8 {[%clk 0:00:05.7]}
115... g3 {[%clk 0:00:12.3]} 0-1